Cogmind - Beta 13 @@@ ROGUE MODE // 2024.03.31 @ 17:06:56 Player: Microwavium Result: Destroyed by Y-54 Guardian with Gatling Laser Performance ------------- Evolutions (3) 1500 Regions Visited (4) 800 Robots Destroyed (90) 450 Value Destroyed (2235) 2235 Prototype IDs (0) 0 Alien Tech Used (0) 0 Bonus (55) 55 TOTAL SCORE: 5040 Bonus ------- High Alert Combat Kills 55 Cogmind --------- Core Integrity 0/700 Matter 198/300 Energy 99/100 System Corruption 11% Temperature Cool (18) Movement Core (50) Location -7/Factory Parts ------- > --- POWER (2) -------- (None) > --- PROPULSION (2) --- (None) > --- UTILITY (5) ------ (None) > --- WEAPON (4) ------- (None) > --- INVENTORY (5) ---- Improved Heat Sink Structural Scanner Kinecellerator System Shield Peak State ------------ > --- POWER ------------ Light Deuterium Engine Light Nuclear Core > --- PROPULSION ------- Light Treads Light Treads > --- UTILITY ---------- Large Storage Unit High-capacity Matter Pod Seismic Detector Reactive Plating Improved Shield Generator > --- WEAPON ----------- Light Assault Rifle Light Assault Rifle Grenade Launcher Heavy Missile Launcher > --- INVENTORY -------- Improved Ion Engine Improved Heat Sink Medium Storage Unit Structural Scanner Kinecellerator System Shield Autogun [Rating: 26] Favorites ----------- Power Improved Ion Engine Engine Improved Ion Engine Power Core Light Nuclear Core Propulsion Light Treads Treads Light Treads Leg Aluminum Leg Wheel Compact Wheel Utility High-capacity Matter Pod Device Structural Scanner Storage High-capacity Matter Pod Hackware Hacking Suite Protection Light Armor Plating Weapon Rocket Launcher Ballistic Gun Light Assault Rifle Ballistic Cannon Flak Cannon Launcher Rocket Launcher Build | -11 -10 -9 -8 -7 ------- Run | Yrd Mat Mat Mat Fac Slots Evolved 6 | . . 2 2 2 Power 1 | . . . 1 . Propulsion . | . . . . . Utility 3 | . . 1 1 1 Weapon 2 | . . 1 . 1 Parts Attached 60 | 6 4 12 19 19 Power 10 | 1 . 2 4 3 Engine 7 | 1 . 1 3 2 Core 3 | . . 1 1 1 Reactor . | . . . . . Propulsion 14 | 2 . 2 5 5 Treads 11 | 2 . 2 5 2 Leg 2 | . . . . 2 Wheel 1 | . . . . 1 Hover . | . . . . . Flight . | . . . . . Utility 16 | 2 2 4 4 4 Device 5 | 1 . . 2 2 Storage 6 | 1 1 2 1 1 Processor . | . . . . . Hackware 1 | . . . 1 . Protection 4 | . 1 2 . 1 Artifact . | . . . . . Weapon 20 | 1 2 4 6 7 Energy Gun . | . . . . . Energy Cannon . | . . . . . Ballistic Gun 8 | 1 . 1 . 6 Ballistic Cannon 2 | . 1 . 1 . Launcher 10 | . 1 3 5 1 Special Weapon . | . . . . . Impact Weapon . | . . . . . Slashing Weapon . | . . . . . Piercing Weapon . | . . . . . Special Melee Weapon . | . . . . . Unidentified Prototypes . | . . . . . Corrupted Parts 1 | . . . . 1 System Corruption 1 | . . . . 1 Parts Lost 35 | . . 3 12 20 Power 9 | . . 2 4 3 Propulsion 8 | . . . 2 6 Utility 7 | . . 1 2 4 Weapon 11 | . . . 4 7 Highest Loss Streak 10 | . . 2 4 10 To Critical Strikes . | . . . . . Average Slot Usage (%) 92 | . 99 94 92 90 Engine 8 | . 14 2 11 6 Core 3 | . . 3 2 5 Treads 17 | . 28 22 17 12 Device 8 | . 5 . 8 14 Storage 17 | . 14 22 18 14 Hackware 2 | . . . 2 2 Protection 5 | . 8 10 4 2 Ballistic Gun 10 | . 14 11 7 13 Ballistic Cannon 4 | . . 11 7 . Launcher 12 | . 12 11 12 13 Naked Turns 3 | . . . . 3 Heaviest Build 63 | 11 21 32 52 63 Greatest Support 40 | 40 40 40 40 40 Greatest Overweight (x) 17 | . . . 2 17 Average Overweight (x) . | . . . . 1 Largest Inventory Capacity 15 | 8 10 10 15 15 Average Capacity 12 | 7 8 10 13 14 Most Carried 10 | 5 6 6 10 7 Average Carried 5 | . 3 4 6 5 Final Capacity 15 | 8 10 10 15 5 Final Carried 7 | . 5 5 7 4 Class Distribution -------------------- 28% | Scavenger-Skirmisher 24% | Scavenger-Bomber 14% | Tank 11% | Mutant 9% | Gunner 5% | Bomber 4% | Scavenger-Gunner Dominant Class ---------------- Mutant | -10/Materials Tank | -9/Materials Scavenger-Skirmisher | -8/Materials Scavenger-Bomber | -7/Factory Resources | -11 -10 -9 -8 -7 ----------- Run | Yrd Mat Mat Mat Fac Matter Collected 2283 | 191 126 565 1088 313 Remotely . | . . . . . Salvage Created 2160 | 71 126 441 936 586 Parts 166 | 6 12 43 64 41 Haulers Intercepted 7 | . 1 2 3 1 Recyclers Shooed 6 | . 1 1 4 . Parts Field Recycled . | . . . . . Retrieved Matter . | . . . . . Parts Self-Destructed . | . . . . . Prevented . | . . . . . Kills | -11 -10 -9 -8 -7 ------- Run | Yrd Mat Mat Mat Fac Combat Hostiles Destroyed 57 | . 4 16 22 15 Guns 15 | . 4 6 3 2 Cannons 15 | . . 7 8 . AOE 27 | . . 3 11 13 Classes Destroyed 13 | 2 4 2 3 2 Worker 5 | . . . 4 1 Builder 7 | . . 2 1 4 Tunneler 2 | 1 . . 1 . Hauler 7 | . 1 2 3 1 Recycler 5 | 1 . . 3 1 Mechanic 1 | . . . 1 . Operator 1 | . . . . 1 Watcher 5 | . 1 1 1 2 Swarmer 22 | . 3 8 7 4 Grunt 25 | . 1 7 9 8 Duelist 1 | . . . 1 . Sentry 7 | . . 1 5 1 Programmer 2 | . . . . 2 Best Kill Streak 8 | 2 2 4 6 8 Combat Bots Only 6 | . 2 4 4 6 Max Kills in Single Turn 4 | 1 1 2 4 4 Gunslinging . | . . . . . Exploded 4 | . . 2 4 4 Melee . | . . . . . Uniques/NPCs Destroyed . | . . . . . Combat | -11 -10 -9 -8 -7 -------- Run | Yrd Mat Mat Mat Fac Hostile Shots Fired 444 | . 25 80 127 212 Missed 147 | . 12 24 37 74 Damage Taken 4312 | . 165 577 1510 2060 Core 891 | . 13 48 130 700 Absorbed by Shields 111 | . . . . 111 Core Remaining (%) 89 | 100 94 88 76 . Volleys Fired 185 | 8 30 38 82 27 Largest 4 | 1 2 3 3 4 Hottest 109 | 20 50 91 100 109 Shots Fired 362 | 8 34 76 175 69 Gun 188 | 8 30 38 74 38 Cannon 100 | . . 30 70 . Launcher 74 | . 4 8 31 31 Special . | . . . . . Kinetic 288 | 8 30 68 144 38 Thermal . | . . . . . Explosive 74 | . 4 8 31 31 Electromagnetic . | . . . . . Robot Hit Streak 17 | 4 6 17 7 9 Robot Miss Streak 12 | 1 3 2 12 4 Penetration Max . | . . . . . Secondary Targets . | . . . . . Shots Hit Robots 214 | 5 22 45 103 39 Core Hits 183 | 3 8 29 86 57 Critical Kills . | . . . . . Critical Parts Destroyed 1 | . . . 1 . Critical Strikes 4 | . . 1 3 . Destroy 1 | . . . 1 . Blast 3 | . . 1 2 . Melee Attacks . | . . . . . Impact . | . . . . . Slashing . | . . . . . Piercing . | . . . . . Sneak Attacks . | . . . . . Combat Hostiles . | . . . . . Follow-up Attacks . | . . . . . Damage Inflicted 5802 | 61 375 1056 2503 1807 Guns 1448 | 61 206 293 663 225 Cannons 1477 | . . 387 1090 . Explosions 2859 | . 159 376 744 1580 Melee . | . . . . . Ramming 18 | . 10 . 6 2 Kinetic 2925 | 61 206 680 1753 225 Thermal . | . . . . . Explosive 2859 | . 159 376 744 1580 Electromagnetic . | . . . . . Impact . | . . . . . Slashing . | . . . . . Piercing . | . . . . . Highest Corruption 11 | . 1 . . 11 Average Corruption 4 | . 1 . . 5 Corruption Purged . | . . . . . Corruption Blocked . | . . . . . Effects 7 | . 1 . . 6 Message Errors 3 | . . . . 3 Matter Fused 2 | . 1 . . 1 Data Loss (minor) 2 | . . . . 2 Overload Shots . | . . . . . Overflow Damage 65 | . . . 22 43 Projectiles . | . . . . . Explosions 65 | . . . 22 43 Melee . | . . . . . Knockbacks 19 | . . . 19 . Impact . | . . . . . Kinetic 19 | . . . 19 . Secondary . | . . . . . Self-Inflicted Damage 442 | . . 9 156 277 Shots 20 | . . 1 9 10 Rammed 5 | . 3 . 2 . Targets Rammed 6 | . 3 . 2 1 Kicked . | . . . . . Crushed 1 | . . . . 1 Highest Temperature 151 | . 7 84 151 98 Average Temperature 38 | . 4 23 47 28 Received Heat Transfer 1353 | . 24 108 549 672 Siege Activations . | . . . . . Robots Corrupted . | . . . . . Combat Hostiles . | . . . . . Parts Fried . | . . . . . Impact Corruptions . | . . . . . Robots Melted . | . . . . . Combat Hostiles . | . . . . . Parts Melted . | . . . . . Heat Transferred . | . . . . . Parts Sabotaged . | . . . . . Parts Stolen . | . . . . . Parts Stripped . | . . . . . Power Chain Reactions . | . . . . . Alert | -11 -10 -9 -8 -7 ------- Run | Yrd Mat Mat Mat Fac Peak Influence 558 | 10 148 413 558 420 Initial 253 | . 6 62 120 253 Average 255 | 5 87 288 264 293 Maximum Alert Level 2 | . . 2 2 2 Low Security (%) 28 | 100 100 11 26 14 Level 1 60 | . . 75 60 77 Level 2 10 | . . 13 13 8 Level 3 . | . . . . . Level 4 . | . . . . . Level 5 . | . . . . . High Security . | . . . . . Max Security . | . . . . . Squads Dispatched 9 | . . 1 2 6 Investigation 1 | . . 1 . . Extermination 2 | . . . . 2 Reinforcement 5 | . . . 1 4 Assault . | . . . . . Garrison 1 | . . . 1 . Intercept . | . . . . . Searches Triggered . | . . . . . Construction Impeded 2 | . . . . 2 Haulers Reinforced 1 | . . . . 1 Active Scanning Responses . | . . . . . Cargo Convoy Interrupts . | . . . . . Stealth | -11 -10 -9 -8 -7 --------- Run | Yrd Mat Mat Mat Fac Distress Signals 8 | . 3 2 2 1 Communications Jammed . | . . . . . Distress Signals . | . . . . . Times Spotted 84 | . 8 21 35 20 Peak Tracking Total 6 | . 5 6 6 5 Tactical Retreats 1 | . . . 1 . Traps | -11 -10 -9 -8 -7 ------- Run | Yrd Mat Mat Mat Fac Traps Triggered 3 | . 1 1 1 . Indirectly . | . . . . . Trap Hack Attempts . | . . . . . Triggered . | . . . . . Disarmed . | . . . . . Reprogrammed . | . . . . . Reused . | . . . . . Traps Extracted . | . . . . . Installed . | . . . . . Triggered . | . . . . . Machines | -11 -10 -9 -8 -7 ---------- Run | Yrd Mat Mat Mat Fac Machines Disabled 13 | . . . 10 3 Max in Single Turn 2 | . . . 2 1 Machines Repaired . | . . . . . Machines Dismantled . | . . . . . Machines Sabotaged . | . . . . . Overloaded Fab Kills . | . . . . . Hacking | -11 -10 -9 -8 -7 --------- Run | Yrd Mat Mat Mat Fac Machines Accessed 2 | . 1 . . 1 Terminals 1 | . . . . 1 Fabricators . | . . . . . Repair Stations 1 | . 1 . . . Recycling Units . | . . . . . Scanalyzers . | . . . . . Garrison Access . | . . . . . Total Hacks 3 | . 2 . . 1 Successful 3 | . 2 . . 1 Failed . | . . . . . Catastrophic . | . . . . . Database Lockouts . | . . . . . Manual . | . . . . . Terminals 1 | . . . . 1 Fabricators . | . . . . . Repair Stations 2 | . 2 . . . Recycling Units . | . . . . . Scanalyzers . | . . . . . Garrison Access . | . . . . . Terminal Hacks 1 | . . . . 1 Record 1 | . . . . 1 Fabricator Hacks . | . . . . . Repair Station Hacks 2 | . 2 . . . Scan Component 2 | . 2 . . . Recycling Unit Hacks . | . . . . . Scanalyzer . | . . . . . Garrison Access Hacks . | . . . . . Unauthorized Hacks . | . . . . . Terminals . | . . . . . Fabricators . | . . . . . Repair Stations . | . . . . . Recycling Units . | . . . . . Scanalyzers . | . . . . . Garrison Access . | . . . . . Data Cores Recovered . | . . . . . Used . | . . . . . Hacking Detections 1 | . 1 . . . Full Trace Events . | . . . . . Feedback Events . | . . . . . Feedback Blocked . | . . . . . Robot Schematics Acquired . | . . . . . Robots Built . | . . . . . Authchips . | . . . . . Time . | . . . . . Total Robot Build Rating . | . . . . . Part Schematics Acquired . | . . . . . Parts Built . | . . . . . Authchips . | . . . . . Time . | . . . . . Total Part Build Rating . | . . . . . Parts Repaired . | . . . . . Time . | . . . . . Parts Recycled . | . . . . . Recycled Matter . | . . . . . Retrieved Matter . | . . . . . Retrieved Components . | . . . . . Parts Scanalyzed . | . . . . . Part Schematics Acquired . | . . . . . Parts Damaged . | . . . . . Bothacking | -11 -10 -9 -8 -7 ------------ Run | Yrd Mat Mat Mat Fac Used RIF Installer . | . . . . . Robots Hacked . | . . . . . Non-combat . | . . . . . Combat . | . . . . . Robot Hacks Applied . | . . . . . Relay Couplers Released . | . . . . . Fabnet Peak Effective % . | . . . . . Robots Rewired . | . . . . . Allies Hacked . | . . . . . Hacks Repelled . | . . . . . Allies | -11 -10 -9 -8 -7 -------- Run | Yrd Mat Mat Mat Fac Total Allies . | . . . . . Largest Group . | . . . . . Highest-Rated Group . | . . . . . Highest-Rated Ally . | . . . . . Total Orders . | . . . . . Ally Attacks . | . . . . . Total Damage . | . . . . . Kills . | . . . . . Allies Corrupted . | . . . . . Allies Melted . | . . . . . Intel | -11 -10 -9 -8 -7 ------- Run | Yrd Mat Mat Mat Fac Robot Analysis Total . | . . . . . Derelict Logs Recovered . | . . . . . Drone Launches . | . . . . . Drone Recoveries . | . . . . . Exploration | -11 -10 -9 -8 -7 ------------- Run | Yrd Mat Mat Mat Fac Turns Passed 3803 | 76 327 484 1795 1121 Spaces Moved 1522 | 44 153 217 697 411 Core 34 | 19 . . . 15 Treads 1463 | 25 153 217 697 371 Legs 6 | . . . . 6 Wheels 19 | . . . . 19 Hover . | . . . . . Flight . | . . . . . Fastest Speed 50 | 50 160 160 160 50 Average Speed 207 | 112 160 160 215 245 Slowest Speed 900 | 160 160 160 320 900 Overloaded Moves . | . . . . . Propulsion Burnouts . | . . . . . Robots Hopped . | . . . . . Cave-ins Triggered . | . . . . . Exploration Rate (%) 25 | 3 31 23 56 13 Regions Visited 4 Branch Regions . Pre-discovered Areas . | . . . . . Known Exits Taken . | . . . . . Unknown Exits Taken 4 | 1 1 1 1 . Scrap Searched . | . . . . . Spaces Dug 26 | . . . 21 5 Terrain Destroyed 442 | . 25 50 233 134 Melee . | . . . . . Projectile . | . . . . . AOE 442 | . 25 50 233 134 Terrain Rammed . | . . . . . Walls Destroyed . | . . . . . Machines Disabled . | . . . . . Actions | -11 -10 -9 -8 -7 --------- Run | Yrd Mat Mat Mat Fac Total 1837 | 63 199 283 820 472 Wait . | . . . . . Move 1518 | 43 152 216 696 411 Hop . | . . . . . Pick Up 53 | 6 8 11 18 10 Fast Attach . | . . . . . Attach 39 | 6 1 5 13 14 Detach 1 | . . . . 1 Swap 21 | . 3 7 6 5 Drop 14 | . 2 6 3 3 Fire 185 | 8 30 38 82 27 Melee . | . . . . . Ram . | . . . . . Kick . | . . . . . Crush 6 | . 3 . 2 1 Escape Stasis . | . . . . . Rewire . | . . . . . Trap . | . . . . . Miscellaneous . | . . . . . Route ------- -11/Scrapyard -10/Materials -9/Materials -8/Materials -7/Factory History --------- Turn | Location | Event 4 | -11/Scrapyard | Discovered new exit (range 15) 77 | -11/Scrapyard | Entered Materials 307 | -10/Materials | Discovered new exit (range 16) 308 | -10/Materials | Build established: Mutant 404 | -10/Materials | Entered another Materials area 404 | -9/Materials | Evolved 2 slots: Utility x1, Weapon x1 669 | -9/Materials | Build established: Tank 811 | -9/Materials | Discovered new exit (range 15) 888 | -9/Materials | Entered another Materials area 888 | -8/Materials | Evolved 2 slots: Power x1, Utility x1 1019 | -8/Materials | Garrison activated, responded to threat 1210 | -8/Materials | Build established: Gunner 1747 | -8/Materials | Build established: Scavenger-Bomber 1880 | -8/Materials | Lost 4 parts (2p2u) 2055 | -8/Materials | Discovered new exit (range 12) 2320 | -8/Materials | Build established: Scavenger-Skirmisher 2368 | -8/Materials | Lost 3 parts (3w) 2683 | -8/Materials | Entered Factory 2683 | -7/Factory | Evolved 2 slots: Utility x1, Weapon x1 3059 | -7/Factory | Lost 3 parts (1n2w) 3399 | -7/Factory | Build established: Scavenger-Bomber 3703 | -7/Factory | Lost 7 parts (2p2n1u2w) 3757 | -7/Factory | Core integrity fell below 50% 3777 | -7/Factory | System corruption reached 10% 3780 | -7/Factory | Core integrity fell below 20% 3804 | -7/Factory | Destroyed by Y-54 Guardian with Gatling Laser Last Messages --------------- U-05 Engineer lays Concrete. K-01 Serf collects debris. Aluminum Leg destroyed. U-05 Engineer lays Concrete. Dropped Lrg. Storage Unit. U-05 Engineer lays Concrete. Dropped Med. Storage Unit. U-05 Engineer lays Concrete. System corrupted: Matter fused (-7). K-01 Serf collects debris. U-05 Engineer lays Concrete. ALERT: Cargo convoy en route, clear transfer corridor. U-05 Engineer lays Concrete. K-01 Serf collects debris. U-05 Engineer lays Concrete. U-05 Engineer builds a Wall. U-05 Engineer lays Concrete. Com. Wheel destroyed. System corrupted: Component data lost. Map ----- +----------------------------------------------------+ | ?????????????????????????????????????????????????? | | ?????????????????????????????????????????????????? | | ?????????????????????????????????????????????????? | | ?????????????????????????????????????????????????? | | ?????????????????????????????????????????????????? | | ?????????????????????????????????????????????????? | | ?????????????????????????????????????????????????? | | ?????????????????????????????????????????????????? | | ?????????????????????????????????????????????????? | | ?????????????????????????????????????????????????? | | ?????????????????????????????????????????????????? | | ?????????????????????????????????????????????????? | | ?????????????????????????????????????????????????? | | ?????? ???? ???????????????????????????????? | | ?????# #??# ???????????????????????????????? | | ?????# #??# #??????????????????????????????? | | ?????# #??# #??????????????????????????????? | | ?????# #??# #??????????????????????????????? | | ?????# #??# #??????????????????????????????? | | ?????# ##?# #??????????????????????????????? | | ?????# ### ##?????????????????????????????? | | ?????# #?????????????????????????????? | | ?????# ##????????????????????????????? | | ##### [ #???????????? ????????????? | | # ## =%=% !#######+## ????????? | | @ ????????? | | * "" Y ????????? | | r ????????? | | ## ########## ?????????? | | # ###### #?????????? ]###?????????? | | # # ############## #???????????? ###???????????? | | ! ##! ## #????????????? #?????????????? | | !# # """ """ ## #????????????????????????????? | | # """ """ ## #????????????????????????????? | | % !% # """ """ ## #?????"""????????????????????? | | ==%%## "" "" ## #?????"" ????????????????????? | | |!!=# "" "" ## #???? ???????????????????? | | " ## #????""""" #?????????????????? | | # ####+####### #??? """"" #?????????????????? | | # ## #### ###? """ #?????????????????? | | # ## # ??????????????????? | | # # """""???????????????????? | | + T + """""???????????????????? | | # # """ #?????????????????? | | ###### # ??????????????????? | | ###????# ########? #?????????????????? | | ########## ###????????"" "" #?????????????????? | | # ! # ##??????????"R"" !#?????????????????? | | #" # ########## """" #? ???????????????? | | #" """" # ################### ???????????????? | +----------------------------------------------------+ Best States ------------- Heat Dissipation 34 Energy Generation 23 Energy Capacity 430 Matter Stores 500 Matter Capacity 500 Sight Range 16 Terrain Scan Density 10 Armor Coverage 150 Resistance: KI 20 Evasion (%) 50 Recoil Reduction 2 Kinecelleration 30 Offensive Hacking 10 Item Schematics ----------------- None Robot Schematics ------------------ None Fabricated ------------ Nothing Alien Tech Used ----------------- None Achievements -------------- Hey, That's Mine! Remodeling Challenges ------------ None Game ------ Seed ControlFrostSource Manual? 0 Play Time 00:34:36 Cumulative 4.1 hours Start 2024.03.31 @ 16:33:11 End 2024.03.31 @ 17:06:56 Sessions 1 Manual Loads 0 Difficulty Rogue Special Mode None Game No. 7 Rogue 4 Adventurer 3 Explorer 0 Win Type - Total 0 Types 0/0/0/0/0/0/0/0/0 Lore% 1 Gallery% 9 Achievement% 8 Wizard Run 0 Options --------- Layout 1 ASCII 0 Keyboard 0 Movement Mouse Keybinds 0 Fullscreen 1 Font 48/Smallcaps Map View 50x35 Zoom Use 0% Tactical HUD 0 Map Filters NONE Filters NONE Steam 1 RUN: 8c104ba7-0251-4ab9-9206-a151cf36e84b